fUSD/lending_fUSD_20250119
["ID","MTS","AMOUNT","RATE_DAILY","PERIOD"]
[349583306,1737310260812,-500.0,0.00020821,2]
[349583307,1737310260822,-500.0,0.00020821,2]
[349583308,1737310260831,-1273.82,0.00020821,2]
[349583309,1737310260841,-500.0,0.00020821,2]
[349583310,1737310260851,-779.89,0.00020821,2]
[349583311,1737310260861,-779.15,0.00020821,2]
[349583312,1737310260870,-500.0,0.00020821,2]
[349583313,1737310260879,-500.0,0.00020821,2]
[349583314,1737310260889,-500.0,0.00020821,2]
[349583315,1737310260898,-500.0,0.00020821,2]
[349583316,1737310260908,-500.0,0.00020821,2]
[349583317,1737310260919,-553.7,0.00020821,2]
[349583318,1737310260930,-500.0,0.00020821,2]
[349583319,1737310260939,-500.0,0.00020821,2]
[349583320,1737310260949,-1522.82,0.00020821,2]
[349583321,1737310260959,-500.0,0.00020821,2]
[349583322,1737310260969,-691.51,0.00020821,2]
[349583323,1737310260979,-500.0,0.00020821,2]
[349583324,1737310260990,-500.0,0.00020821,2]
[349583325,1737310261000,-500.0,0.00020821,2]
[349583326,1737310261010,-500.0,0.00020821,2]
[349583327,1737310261020,-500.0,0.00020821,2]
[349583328,1737310261030,-500.0,0.00020821,2]
[349583329,1737310261040,-815.6,0.00020821,2]
[349583330,1737310261050,-500.0,0.00020821,2]
[349583331,1737310261060,-500.0,0.00020821,2]
[349583332,1737310261069,-1368.99,0.00020821,2]
[349583333,1737310261079,-500.0,0.00020821,2]
[349583334,1737310261089,-500.0,0.00020821,2]
[349583335,1737310261099,-500.0,0.00020821,2]
[349583336,1737310261109,-500.0,0.00020821,2]
[349583337,1737310261118,-500.0,0.00020821,2]
[349583338,1737310261128,-500.0,0.00020821,2]
[349583339,1737310261138,-500.0,0.00020821,2]
[349583340,1737310261147,-500.0,0.00020821,2]
[349583341,1737310261158,-500.0,0.00020821,2]
[349583342,1737310261170,-500.0,0.00020821,2]
[349583343,1737310261181,-500.0,0.00020821,2]
[349583344,1737310261190,-500.0,0.00020821,2]
[349583345,1737310261201,-800.91,0.00020821,2]
[349583346,1737310261211,-500.0,0.00020821,2]
[349583347,1737310261221,-564.29763418,0.00020821,2]
[349583348,1737310261231,-500.0,0.00020821,2]
[349583349,1737310261241,-552.35,0.00020821,2]
[349583350,1737310261251,-500.0,0.00020821,2]
[349583351,1737310261261,-500.0,0.00020821,2]
[349583352,1737310261271,-500.0,0.00020821,2]
[349583353,1737310261280,-500.0,0.00020821,2]
[349583354,1737310261290,-546.11,0.00020821,2]
[349583355,1737310261300,-500.0,0.00020821,2]
[349583356,1737310261309,-500.0,0.00020821,2]
[349583357,1737310261319,-500.0,0.00020821,2]
[349583358,1737310261329,-500.0,0.00020821,2]
[349583359,1737310261339,-500.0,0.00020821,2]
[349583360,1737310261349,-500.0,0.00020821,2]
[349583361,1737310261359,-500.0,0.00020821,2]
[349583362,1737310261369,-500.0,0.00020821,2]
[349583363,1737310261378,-500.0,0.00020821,2]
[349583364,1737310261388,-500.0,0.00020821,2]
[349583365,1737310261398,-500.0,0.00020821,2]
[349583366,1737310261408,-500.0,0.00020821,2]
[349583367,1737310261417,-500.0,0.00020821,2]
[349583368,1737310261427,-500.0,0.00020821,2]
[349583369,1737310261436,-500.0,0.00020821,2]
[349583370,1737310261445,-1061.47,0.00020821,2]
[349583371,1737310261454,-500.0,0.00020821,2]
[349583372,1737310261464,-500.0,0.00020821,2]
[349583373,1737310261473,-656.65,0.00020821,2]
[349583374,1737310261482,-500.0,0.00020821,2]
[349583375,1737310261495,-508.10664179,0.00020821,2]
[349583376,1737310261505,-500.0,0.00020821,2]
[349583377,1737310261514,-500.0,0.00020821,2]
[349583378,1737310261523,-500.0,0.00020821,2]
[349583379,1737310261533,-625.32,0.00020821,2]
[349583380,1737310261542,-500.0,0.00020821,2]
[349583381,1737310261552,-568.62,0.00020821,2]
[349583382,1737310261561,-500.0,0.00020821,2]
[349583383,1737310261571,-663.61,0.00020821,2]
[349583384,1737310261580,-500.0,0.00020821,2]
[349583385,1737310261589,-150.0,0.00020834,2]
[349583386,1737310261598,-150.0,0.00020843,2]
[349583387,1737310261607,-150.0,0.00020845,2]
[349583388,1737310261617,-150.0,0.00020846,2]
[349583389,1737310261626,-150.0,0.00020851,2]
[349583390,1737310261635,-150.0,0.00020857,2]
[349583391,1737310261644,-150.0,0.00020858,2]
[349583392,1737310261654,-150.89167151,0.00020861,2]
[349583393,1737310261663,-150.0,0.00020864,2]
[349583394,1737310261673,-150.0,0.00020869,2]
[349583395,1737310261682,-150.0,0.00020869,2]
[349583396,1737310261692,-150.0,0.0002088,2]
[349583397,1737310261701,-150.0,0.00020881,2]
[349583398,1737310261710,-150.0,0.00020887,2]
[349583399,1737310261719,-150.0,0.00020888,2]
[349583400,1737310261729,-150.0,0.00020892,2]
[349583401,1737310261740,-150.0,0.00020893,2]
[349583402,1737310261749,-150.0,0.00020893,2]
[349583403,1737310261759,-24999.3354,0.00020899,2]
[349583404,1737310261770,-191.96070736,0.000209,2]
[349583405,1737310261779,-1424.38225592,0.000209,2]
[349583406,1737310261789,-150.0,0.00020902,2]
[349583407,1737310261799,-150.0,0.00020903,2]
[349583408,1737310261808,-150.0,0.00020909,2]
[349583409,1737310261818,-150.0,0.00020917,2]
[349583410,1737310261827,-150.0,0.00020922,2]
[349583411,1737310261837,-150.0,0.00020922,2]
[349583412,1737310261846,-150.0,0.00020923,2]
[349583413,1737310261856,-150.0,0.00020924,2]
[349583414,1737310261866,-150.0,0.00020925,2]
[349583415,1737310261875,-150.0,0.00020929,2]
[349583416,1737310261884,-150.0,0.0002093,2]
[349583417,1737310261894,-150.0,0.00020935,2]
[349583418,1737310261903,-150.0,0.00020941,2]
[349583419,1737310261913,-150.0,0.00020941,2]
[349583420,1737310261922,-150.0,0.00020947,2]
[349583421,1737310261932,-150.0,0.0002095,2]
[349583422,1737310261941,-150.0,0.00020951,2]
[349583423,1737310261951,-150.0,0.00020961,2]
[349583424,1737310261961,-500.0,0.0002099,2]
[349583425,1737310261971,-500.0,0.0002099,2]
[349583426,1737310261981,-509.19,0.0002099,2]
[349583427,1737310261993,-500.0,0.00020996,2]
[349583428,1737310262002,-500.0,0.00020996,2]
[349583429,1737310262012,-500.0,0.00020996,2]
[349583430,1737310262021,-500.0,0.00020996,2]
[349583431,1737310262030,-500.0,0.00020996,2]
[349583432,1737310262039,-500.0,0.00020996,2]
[349583433,1737310262049,-500.0,0.00020996,2]
[349583434,1737310262057,-500.0,0.00020996,2]
[349583435,1737310262067,-500.0,0.00020996,2]
[349583436,1737310262076,-500.0,0.00020996,2]
[349583437,1737310262085,-500.0,0.00020996,2]
[349583438,1737310262094,-500.0,0.00020996,2]
[349583439,1737310262103,-500.0,0.00020996,2]
[349583440,1737310262113,-500.0,0.00020996,2]
[349583441,1737310262122,-500.0,0.00020996,2]
[349583442,1737310262131,-500.0,0.00020996,2]
[349583443,1737310262141,-500.0,0.00020996,2]
[349583444,1737310262153,-500.0,0.00020996,2]
[349583445,1737310262164,-500.0,0.00020996,2]
[349583446,1737310262173,-500.0,0.00020996,2]
[349583447,1737310262182,-500.0,0.00020996,2]
[349583448,1737310262191,-500.0,0.00020996,2]
[349583449,1737310262200,-500.0,0.00020996,2]
[349583450,1737310262210,-500.0,0.00020996,2]
[349583451,1737310262220,-503.33122706,0.00020996,2]
[349583452,1737310262230,-500.0,0.00020996,2]
[349583453,1737310262240,-500.0,0.00020996,2]
[349583454,1737310262250,-500.0,0.00020996,2]
[349583455,1737310262260,-500.0,0.00020996,2]
[349583456,1737310262269,-500.0,0.00020996,2]
[349583457,1737310262278,-500.0,0.00020996,2]
[349583458,1737310262287,-500.0,0.00020996,2]
[349583459,1737310262297,-500.0,0.00020996,2]
[349583460,1737310262306,-500.0,0.00020996,2]
[349583461,1737310262316,-500.0,0.00020996,2]
[349583462,1737310262326,-500.0,0.00020996,2]
[349583463,1737310262335,-500.0,0.00020996,2]
[349583464,1737310262345,-500.0,0.00020996,2]
[349583465,1737310262355,-500.0,0.00020996,2]
[349583466,1737310262365,-500.0,0.00020996,2]
[349583467,1737310262375,-500.0,0.00020996,2]
[349583468,1737310262385,-500.0,0.00020996,2]
[349583469,1737310262395,-500.0,0.00020996,2]
[349583470,1737310262405,-514.12,0.00020996,2]
[349583471,1737310262415,-500.0,0.00020996,2]
[349583472,1737310262425,-500.0,0.00020996,2]
[349583473,1737310262435,-500.0,0.00020996,2]
[349583474,1737310262444,-500.0,0.00020996,2]
[349583475,1737310262454,-500.0,0.00020996,2]
[349583476,1737310262463,-500.0,0.00020996,2]
[349583477,1737310262473,-500.0,0.00020996,2]
[349583478,1737310262482,-500.0,0.00020996,2]
[349583479,1737310262493,-560.82,0.00020996,2]
[349583480,1737310262503,-500.0,0.00020998,2]
[349583481,1737310262513,-500.0,0.00020998,2]
[349583482,1737310262523,-500.0,0.00020998,2]
[349583483,1737310262533,-500.0,0.00020998,2]
[349583484,1737310262543,-500.0,0.00020998,2]
[349583485,1737310262552,-500.0,0.00020998,2]
[349583486,1737310262562,-500.0,0.00020998,2]
[349583487,1737310262571,-500.0,0.00020998,2]
[349583488,1737310262580,-500.0,0.00020998,2]
[349583489,1737310262589,-500.0,0.00020998,2]
[349583490,1737310262598,-500.0,0.00020999,2]
[349583491,1737310262608,-312330.49875569,0.00021,15]
[349583492,1737310262883,-729.12371714,0.00021,15]
[349583493,1737310262895,-1866.40000012,0.00021,15]
[349583494,1737310262906,-3281.35815435,0.00021,15]
[349583495,1737310262917,-4601.27218988,0.00021,15]
[349583496,1737310262929,-3515.28362146,0.00021,15]
[349583497,1737310262940,-5199.88223325,0.00021,15]
[349583498,1737310262956,-1348.41,0.00020273,2]
[349583499,1737310262967,-81943.89881554,0.00021,15]
[349583500,1737310262978,-2495.0001,0.00021,15]
[349583501,1737310262992,-2946.36745992,0.00021,15]
[349583502,1737310263003,-556.78398471,0.00021,15]
[349583503,1737310263015,-513.46498005,0.00021,15]
[349583504,1737310263027,-21275.15690139,0.00021,15]
[349583505,1737310263039,-171541.379629,0.00021,15]
[349583506,1737310263057,-500.0,0.00019178,2]
[349583507,1737310263067,-69.36792962,0.00021,15]
[349583508,1737310263079,-3950.78810474,0.00021,15]
[349583509,1737310441232,2888.42,0.0001984,30]
[349583510,1737310621256,267.89,0.00010137,2]
[349583512,1737311107930,235729.70570918,0.00012,2]
[349583513,1737311119515,269.79593938,9e-05,2]
[349583515,1737311212135,-260.9443032,0.00015,2]
[349583517,1737311278901,2486.07201199,0.0001,2]
[349583518,1737311281996,343138.2244568,0.0001,2]
[349583519,1737311282026,1000.0,0.0001,2]
[349583520,1737311282053,100000.0,0.0001,2]
[349583526,1737311325951,270.40961914,8e-05,2]
[349583527,1737311396985,-300.0,9.999e-05,2]
[349583528,1737311397009,-9700.0,0.0001,2]
[349583529,1737311411261,-300.0,9.999e-05,2]
[349583530,1737311411284,-9700.0,0.0001,2]
[349583536,1737311431917,-3835.68,0.0001,2]
[349583537,1737311431938,-2727.3619961,0.0001,2]
[349583538,1737311431949,-15278.35769434,0.0001,2]
[349583540,1737311432052,-439.8200001,0.0001,2]
[349583541,1737311432063,-959.3669999,0.0001,2]
[349583542,1737311432075,-10751.95037142,0.0001,2]
[349583543,1737311432086,-1105.69223922,0.0001,2]
[349583544,1737311432158,-1768.11882066,0.0001,2]
[349583545,1737311432251,-1913.36722042,0.0001,2]
[349583546,1737311432262,-3236.67754193,0.0001,2]
[349583547,1737311432273,-1812.896085,0.0001,2]
[349583548,1737311432284,-579.1131891,0.0001,2]
[349583549,1737311432296,-487.25,0.0001,2]
[349583550,1737311432307,-4088.35702925,0.0001,2]
[349583551,1737311432344,-1138.05576468,0.0001,2]
[349583579,1737311436749,2751.83,0.00018297,30]
[349583580,1737311437798,-724.000035,0.0001,2]
[349583581,1737311437809,-1183.499996,0.0001,2]
[349583582,1737311437882,-12557.62730249,0.0001,2]
[349583583,1737311437893,-1533.348258,0.0001,2]
[349583584,1737311437904,-1227.21394694,0.0001,2]
[349583585,1737311437916,-33122.52323491,0.0001,2]
[349583586,1737311437927,-310.24010705,0.0001,2]
[349583587,1737311437938,-5000.88988998,0.0001,2]
[349583588,1737311437956,-525.3952035,0.0001,2]
[349583589,1737311437967,-1067.9999996,0.0001,2]
[349583590,1737311438034,-114304.12886718,0.0001,2]
[349583591,1737311438046,-12500.0,0.0001,2]
[349583592,1737311438126,-398.43000292,0.0001,2]
[349583593,1737311438138,-1895.64872112,0.0001,2]
[349583594,1737311438149,-304.67288233,0.0001,2]
[349583595,1737311438160,-2882.66150988,0.0001,2]
[349583596,1737311438175,-73179.82636332,0.0001,2]
[349583597,1737311438184,-260.94267346,0.00010899,2]
[349583598,1737311438194,-344.0,0.00010999,2]
[349583599,1737311438203,-209.29096882,0.000132,2]
[349583600,1737311438213,-289.0556968,0.00015,2]
[349583601,1737311438223,-3882.0,0.000152,5]
[349583602,1737311438232,-641.0,0.00015699,2]
[349583603,1737311438245,-500.0,0.0001589,2]
[349583605,1737311438255,-889.74,0.00016473,2]
[349583607,1737311438264,-267.89,0.00016813,2]
[349583609,1737311438274,-600.0,0.00017,2]
[349583611,1737311438283,-500.0,0.00017233,2]
[349583613,1737311438292,-150.0,0.00018178,2]
[349583615,1737311438302,-323.33,0.00018209,2]
[349583617,1737311438311,-448.75,0.00018231,2]
[349583619,1737311438321,-214.36,0.00018279,2]
[349583621,1737311438331,-1902.57,0.00018288,2]
[349583623,1737311438340,-186.26,0.00018325,2]
[349583625,1737311438350,-500.0,0.00018492,2]
[349583627,1737311438359,-200.0,0.00018546,2]
[349583629,1737311438368,-462.85,0.0001858,2]
[349583632,1737311438378,-250.0,0.00018608,2]
[349583635,1737311438388,-889.74,0.00018737,2]
[349583638,1737311438397,-2805.88,0.0001875,2]
[349583640,1737311438406,-1000.0,0.00018777,2]
[349583643,1737311438415,-214.36,0.00018956,2]
[349583646,1737311438425,-650.0,0.00019,2]
[349583649,1737311438434,-2038.8696,0.00019078,2]
[349583652,1737311438443,-5965.5299,0.00019078,2]
[349583655,1737311438452,-250.0,0.00019081,2]
[349583658,1737311438462,-3801.65991438,0.00019177,2]
[349583661,1737311438470,-861.635,0.00019177,2]
[349583664,1737311438479,-176.40963862,0.00019177,2]
[349583667,1737311438491,-574.17607077,0.00019178,2]
[349583670,1737311438501,-500.0,0.00019178,2]
[349583673,1737311438510,-500.0,0.00019178,2]
[349583675,1737311438525,-500.0,0.00019178,2]
[349583678,1737311438537,-500.0,0.00019178,2]
[349583681,1737311438547,-500.0,0.00019178,2]
[349583684,1737311438557,-500.0,0.00019178,2]
[349583685,1737311438567,-500.0,0.00019178,2]
[349583688,1737311438576,-500.0,0.00019178,2]
[349583690,1737311438586,-500.0,0.00019178,2]
[349583692,1737311438597,-500.0,0.00019178,2]
[349583694,1737311438607,-500.0,0.00019178,2]
[349583696,1737311438617,-500.0,0.00019178,2]
[349583698,1737311438626,-500.0,0.00019178,2]
[349583700,1737311438635,-500.0,0.00019178,2]
[349583701,1737311438644,-500.0,0.00019178,2]
[349583703,1737311438654,-500.0,0.00019178,2]
[349583706,1737311438663,-500.0,0.00019178,2]
[349583708,1737311438673,-500.0,0.00019178,2]
[349583709,1737311438682,-500.0,0.00019178,2]
[349583711,1737311438691,-500.0,0.00019178,2]
[349583713,1737311438700,-500.0,0.00019178,2]
[349583715,1737311438710,-500.0,0.00019178,2]
[349583718,1737311438719,-500.0,0.00019178,2]
[349583720,1737311438729,-500.0,0.00019178,2]
[349583722,1737311438740,-500.0,0.00019178,2]
[349583723,1737311438750,-500.0,0.00019178,2]
[349583726,1737311438760,-500.0,0.00019178,2]
[349583728,1737311438770,-500.0,0.00019178,2]
[349583730,1737311438779,-500.0,0.00019178,2]
[349583732,1737311438789,-500.0,0.00019178,2]
[349583733,1737311438798,-500.0,0.00019178,2]
[349583736,1737311438808,-500.0,0.00019178,2]
[349583737,1737311438817,-500.0,0.00019178,2]
[349583740,1737311438827,-500.0,0.00019178,2]
[349583742,1737311438837,-500.0,0.00019178,2]
[349583743,1737311438846,-500.0,0.00019178,2]
[349583745,1737311438856,-500.0,0.00019178,2]
[349583747,1737311438865,-500.0,0.00019178,2]
[349583749,1737311438875,-500.0,0.00019178,2]
[349583752,1737311438885,-510.67,0.00019178,2]
[349583753,1737311438895,-500.0,0.00019178,2]
[349583756,1737311438904,-500.0,0.00019178,2]
[349583757,1737311438914,-500.0,0.00019178,2]
[349583760,1737311438923,-500.0,0.00019178,2]
[349583762,1737311438933,-525.81,0.00019178,2]
[349583763,1737311438942,-500.0,0.00019178,2]
[349583765,1737311438951,-500.0,0.00019178,2]
[349583768,1737311438964,-500.0,0.00019178,2]
[349583769,1737311438977,-500.0,0.00019178,2]
[349583772,1737311438991,-500.0,0.00019178,2]
[349583773,1737311439001,-500.0,0.00019178,2]
[349583775,1737311439014,-500.0,0.00019178,2]
[349583777,1737311439025,-500.0,0.00019178,2]
[349583779,1737311439035,-500.0,0.00019178,2]
[349583781,1737311439046,-500.0,0.00019178,2]
[349583783,1737311439056,-500.0,0.00019178,2]
[349583786,1737311439066,-500.0,0.00019178,2]
[349583787,1737311439076,-500.0,0.00019178,2]
[349583790,1737311439086,-500.0,0.00019178,2]
[349583792,1737311439096,-500.0,0.00019178,2]
[349583794,1737311439106,-500.0,0.00019178,2]
[349583796,1737311439115,-500.0,0.00019178,2]
[349583798,1737311439124,-500.0,0.00019178,2]
[349583800,1737311439136,-500.0,0.00019178,2]
[349583801,1737311439146,-160.60321796,0.00019178,2]
[349583803,1737311439156,-9273.0,0.00019211,2]
[349583805,1737311439166,-200.0,0.00019229,2]
[349583807,1737311439175,-451.0,0.0001926,2]
[349583810,1737311439185,-421.7984423,0.00019296,2]
[349583812,1737311439197,-200.0,0.00019345,2]
[349583814,1737311439207,-376.92981942,0.00019352,2]
[349583816,1737311439217,-2164.84446815,0.00019369,2]
[349583817,1737311439227,-2164.84446815,0.0001938,2]
[349583820,1737311439237,-2164.84446815,0.00019385,2]
[349583821,1737311439249,-209.29096882,0.000194,2]
[349583823,1737311439259,-2164.84446815,0.00019411,2]
[349583825,1737311439269,-480.76526334,0.00019452,2]
[349583827,1737311439279,-500.0,0.00019452,2]
[349583829,1737311439288,-500.0,0.00019452,2]
[349583831,1737311439298,-500.0,0.00019452,2]
[349583834,1737311439307,-500.0,0.00019452,2]
[349583836,1737311439317,-500.0,0.00019452,2]
[349583838,1737311439326,-500.0,0.00019452,2]
[349583840,1737311439336,-500.0,0.00019452,2]
[349583841,1737311439346,-500.0,0.00019452,2]
[349583842,1737311439355,-500.0,0.00019452,2]
[349583843,1737311439365,-527.15,0.00019452,2]
[349583844,1737311439375,-500.0,0.00019452,2]
[349583845,1737311439386,-500.0,0.00019452,2]
[349583846,1737311439396,-500.0,0.00019452,2]
[349583847,1737311439406,-500.0,0.00019452,2]
[349583848,1737311439416,-500.0,0.00019452,2]
[349583849,1737311439426,-500.0,0.00019452,2]
[349583850,1737311439436,-500.0,0.00019452,2]
[349583851,1737311439446,-500.0,0.00019452,2]
[349583853,1737311439456,-500.0,0.00019452,2]
[349583855,1737311439465,-500.0,0.00019452,2]
[349583856,1737311439475,-500.0,0.00019452,2]
[349583857,1737311439485,-500.0,0.00019452,2]
[349583858,1737311439496,-500.0,0.00019452,2]
[349583860,1737311439506,-500.0,0.00019452,2]
[349583861,1737311439518,-500.0,0.00019452,2]
[349583863,1737311439530,-500.0,0.00019452,2]
[349583865,1737311439539,-500.0,0.00019452,2]
[349583867,1737311439549,-500.0,0.00019452,2]
[349583869,1737311439558,-500.0,0.00019452,2]
[349583871,1737311439567,-500.0,0.00019452,2]
[349583873,1737311439576,-250.30614307,0.00019452,2]
[349583875,1737311439585,-500.0,0.00019452,2]
[349583877,1737311439594,-510.67,0.00019452,2]
[349583879,1737311439605,-500.0,0.00019452,2]
[349583881,1737311439615,-500.0,0.00019452,2]
[349583883,1737311439624,-500.0,0.00019452,2]
[349583885,1737311439634,-500.0,0.00019452,2]
[349583887,1737311439644,-500.0,0.00019452,2]
[349583889,1737311439654,-500.0,0.00019452,2]
[349583891,1737311439664,-500.0,0.00019452,2]
[349583893,1737311439674,-500.0,0.00019452,2]
[349583895,1737311439683,-500.0,0.00019452,2]
[349583897,1737311439693,-500.0,0.00019452,2]
[349583899,1737311439702,-500.0,0.00019452,2]
[349583901,1737311439712,-500.0,0.00019452,2]
[349583903,1737311439721,-500.0,0.00019452,2]
[349583905,1737311439731,-500.0,0.00019452,2]
[349583907,1737311439742,-500.0,0.00019452,2]
[349583909,1737311439752,-502.52956279,0.00019452,2]
[349583911,1737311439761,-2164.84446815,0.0001949,2]
[349583913,1737311439771,-318.65886342,0.000195,2]
[349583915,1737311439780,-250.0,0.00019524,2]
[349583917,1737311439790,-376.92981937,0.00019524,2]
[349583919,1737311439799,-421.7984423,0.00019605,2]
[349583921,1737311439808,-500.0,0.00019625,2]
[349583923,1737311439818,-150.75,0.00019625,2]
[349583925,1737311439828,-500.0,0.00019625,2]
[349583927,1737311439837,-345.52999999,0.00019625,2]
[349583929,1737311439847,-500.0,0.00019625,2]
[349583931,1737311439858,-500.0,0.00019625,2]
[349583933,1737311439867,-500.0,0.00019625,2]
[349583935,1737311439877,-500.0,0.00019625,2]
[349583937,1737311439886,-500.0,0.00019625,2]
[349583939,1737311439896,-574.67,0.00019625,2]
[349583941,1737311439905,-500.0,0.00019625,2]
[349583943,1737311439915,-500.0,0.00019625,2]
[349583948,1737311439925,-500.0,0.00019625,2]
[349583952,1737311439934,-500.0,0.00019625,2]
[349583955,1737311439943,-500.0,0.00019625,2]
[349583957,1737311439952,-144.7893337,0.00019625,2]
[349584106,1737311441247,-500.0,0.00019178,2]
[349584108,1737311441257,-125.389765,0.00019178,2]
[349584111,1737311441269,-374.610235,0.00019178,2]
[349584113,1737311441279,-500.0,0.00019178,2]
[349584115,1737311441289,-500.0,0.00019178,2]
[349584117,1737311441298,-332.13976503,0.00019452,2]
[349584122,1737311441341,-167.86023497,0.00019452,2]
[349584124,1737311441350,-129.1801777,0.00019452,2]
[349584126,1737311441362,-370.8198223,0.00019452,2]
[349584128,1737311441371,-355.2106663,0.00019625,2]
[349584130,1737311441381,-500.0,0.00019625,2]
[349584132,1737311441391,-500.0,0.00019625,2]
[349584134,1737311441400,-500.0,0.00019625,2]
[349584136,1737311441409,-500.0,0.00019625,2]
[349584138,1737311441418,-791.74,0.00019625,2]
[349584140,1737311441427,-751.88,0.00019625,2]
[349584142,1737311441436,-500.0,0.00019625,2]
[349584144,1737311441445,-500.0,0.00019625,2]
[349584146,1737311441454,-500.0,0.00019625,2]
[349584148,1737311441464,-500.60028541,0.00019625,2]
[349584150,1737311441473,-635.20176183,0.00019625,2]
[349584152,1737311441488,-432.28823817,0.00019625,2]
[349584154,1737311441498,-500.0,0.00019625,2]
[349584155,1737311441508,-848.92,0.00019625,2]
[349584156,1737311441517,-500.0,0.00019625,2]
[349584157,1737311441530,-500.0,0.00019625,2]
[349584158,1737311441540,-500.0,0.00019625,2]
[349584159,1737311441549,-500.0,0.00019625,2]
[349584160,1737311441559,-500.0,0.00019625,2]
[349584161,1737311441568,-500.0,0.00019625,2]
[349584162,1737311441580,-500.0,0.00019625,2]
[349584164,1737311441589,-500.0,0.00019625,2]
[349584166,1737311441601,-500.0,0.00019625,2]
[349584168,1737311441611,-500.0,0.00019625,2]
[349584170,1737311441621,-500.0,0.00019625,2]
[349584172,1737311441630,-500.0,0.00019625,2]
[349584174,1737311441640,-500.0,0.00019625,2]
[349584176,1737311441650,-539.84,0.00019625,2]
[349584178,1737311441660,-2405.5933,0.00019626,2]
[349584180,1737311441670,-214.36,0.00019632,2]
[349584182,1737311441681,-376.92981937,0.00019696,2]
[349584184,1737311441690,-500.0,0.00019725,2]
[349584186,1737311441700,-500.0,0.00019725,2]
[349584188,1737311441710,-500.0,0.00019725,2]
[349584190,1737311441719,-244.41524364,0.00019725,2]
[349584192,1737311441731,-255.58475636,0.00019725,2]
[349584194,1737311441740,-1089.44,0.00019725,2]
[349584196,1737311441756,-551.9,0.00019725,2]
[349584198,1737311441766,-1089.96,0.00019725,2]
[349584200,1737311441775,-500.0,0.00019725,2]
[349584202,1737311441784,-969.7,0.00019725,2]
[349584204,1737311441793,-500.0,0.00019725,2]
[349584206,1737311441802,-102.79078054,0.00019725,2]
[349584209,1737311441813,-474.91921946,0.00019725,2]
[349584211,1737311441823,-169.90896589,0.00019725,2]
[349584213,1737311441834,-330.09103411,0.00019725,2]
[349584215,1737311441843,-85.44218239,0.00019725,2]
[349584217,1737311441855,-414.55781761,0.00019725,2]
[349584219,1737311441865,-500.0,0.00019725,2]
[349584221,1737311441874,-137.42933339,0.00019725,2]
[349584223,1737311441886,-362.57066661,0.00019725,2]
[349584225,1737311441895,-500.0,0.00019725,2]
[349584227,1737311441904,-500.0,0.00019725,2]
[349584229,1737311441913,-500.0,0.00019725,2]
[349584231,1737311441922,-360.23330879,0.00019725,2]
[349584234,1737311441933,-139.76669121,0.00019725,2]
[349584236,1737311441942,-500.0,0.00019725,2]
[349584238,1737311441951,-567.31,0.00019725,2]
[349584240,1737311441961,-272.44892201,0.00019725,2]
[349584241,1737311441970,-383.01862678,0.00019725,2]